[Event "6th Tulsi Lal Memorial NTCC 2080"]
[Site "Lalitpur"]
[Date "2024.01.08"]
[Round "1.1"]
[White "Chaulagain, Purushottam"]
[Black "Nepali, Badrilal"]
[Result "0-1"]
[ECO "D00"]
[WhiteElo "1838"]
[BlackElo "1869"]
[Annotator "NA RC COMBH"]
[PlyCount "136"]
[EventDate "2024.01.03"]
[EventType "team-tourn"]
[EventCountry "NEP"]
[SourceTitle "playchess.com"]
[Source "ChessBase"]
[SourceQuality "1"]
[TimeControl "5400+30"]

1. d4 {[%emt 0:00:05]} Nf6 {[%emt 0:00:00]} 2. Nc3 {[%emt 0:00:06]} d5 {[%emt 0:00:00]} 3. Bf4 {[%emt 0:00:07]} e6 {[%emt 0:00:19]} 4. Nb5 {[%emt 0:00:44]} Na6 {[%emt 0:00:26]} 5. e3 {[%emt 0:00:12]} c6 {[%emt 0:04:37]} 6. Nc3 {[%emt 0:00:15]} Nc7 {[%emt 0:00:24]} 7. Nf3 {[%emt 0:02:00]} Be7 {[%emt 0:02:11]} 8. Ne5 {[%emt 0:00:55]} Nd7 {[%emt 0:01:41]} 9. Bd3 {[%emt 0:02:05]} Nxe5 {[%emt 0:01:13]} 10. Bxe5 {[%emt 0:00:58]} O-O {[%emt 0:02:07]} 11. O-O {[%emt 0:08:12]} Ne8 {[%emt 0:00:49]} 12. Qh5 {[%emt 0:07:58]} f5 {[%emt 0:01:13]} (12... g6 $5 {[%cal Rg6h5]} 13. Qe2 Bd6 $11) 13. f3 {[%emt 0:11:24]} Nf6 {[%emt 0:00:30]} 14. Qh3 {[%emt 0:02:12]} c5 {[%emt 0:06:01]} 15. Kh1 {[%emt 0:10:29]} Nd7 {[%emt 0:02:15]} 16. e4 {[%emt 0:12:36]} Nxe5 {[%emt 0:03:09]} 17. dxe5 {[%emt 0:00:07]} d4 {[%emt 0:04:57]} (17... g6 $11) 18. Ne2 {[%emt 0:07:51]} Qc7 {[%emt 0:06:13] [#]} 19. exf5 $1 {[%emt 0:01:13]} exf5 {[%emt 0:06:33]} 20. Bc4+ {[%emt 0:00:58]} Kh8 {[%emt 0:00:14]} 21. Nf4 {[%emt 0:01:10]} Qc6 {[%emt 0:02:11]} 22. Be6 {[%emt 0:04:47]} Qe8 {[%emt 0:02:13]} 23. Bd5 {[%emt 0:11:31]} Bg5 {[%emt 0:01:42]} 24. Qg3 {[%emt 0:00:14]} Bxf4 {[%emt 0:02:56]} 25. Qxf4 {[%emt 0:00:06]} Be6 {[%emt 0:00:19]} 26. Bxe6 {[%emt 0:01:34]} Qxe6 {[%emt 0:02:25]} 27. a4 {[%emt 0:00:18]} Rad8 {[%emt 0:00:48]} 28. Rfe1 {[%emt 0:00:51]} Rd5 {[%emt 0:01:09]} 29. Re2 {[%emt 0:02:16]} h6 {[%emt 0:00:39]} 30. Rae1 {[%emt 0:01:19]} Rfd8 {[%emt 0:01:56]} 31. Qd2 {[%emt 0:05:09]} c4 {[%emt 0:44:50]} 32. h3 {[%emt 0:01:25]} b5 {[%emt 0:00:00]} 33. b3 {[%emt 0:05:53]} d3 {[%emt 0:00:00]} 34. Re3 {[%emt 0:00:00]} dxc2 {[%emt 0:00:00]} 35. Qxc2 {[%emt 0:00:00]} Rd2 {[%emt 0:00:00]} 36. Qb1 {[%emt 0:00:00]} f4 {[%emt 0:00:00]} 37. R3e2 {[%emt 0:00:00]} c3 {[%emt 0:00:00]} 38. Qc1 {[%emt 0:01:07]} Qxb3 {[%emt 0:00:00]} 39. Kh2 {[%emt 0:00:56]} b4 {[%emt 0:00:00]} 40. e6 {[%emt 0:00:42]} Rxe2 {[%emt 0:00:00]} ({Weaker is} 40... Qxa4 41. e7 Re8 42. Rxd2 cxd2 43. Qxd2 $11) (40... Qa2 $142 41. e7 Re8 42. Qxd2 cxd2) 41. Rxe2 {[%emt 0:00:02]} Qc4 {[%emt 0:00:00]} 42. Re4 {[%emt 0:00:36]} Qc5 {[%emt 0:00:00]} 43. e7 {[%emt 0:00:15]} Re8 {[%emt 0:00:00]} 44. Qxf4 {[%emt 0:00:12]} c2 {[%emt 0:00:00]} 45. Rc4 {[%emt 0:01:26]} Qxe7 {[%emt 0:00:00]} 46. Rxc2 {[%emt 0:00:10]} Qe5 {[%emt 0:00:00]} 47. Kg3 {[%emt 0:00:40]} a5 {[%emt 0:00:00]} 48. Qxe5 {[%emt 0:00:28]} Rxe5 {[%emt 0:00:00]} 49. Kf4 $11 {[%emt 0:00:01]} Rg5 {[%emt 0:00:00]} 50. h4 {[%emt 0:00:32]} Rg6 {[%emt 0:00:00]} 51. g4 {[%emt 0:00:36]} Rb6 {[%emt 0:00:00]} 52. Ke5 {[%emt 0:00:43]} Kg8 {[%emt 0:00:00]} 53. Kd5 {[%emt 0:00:29]} Kf7 {[%emt 0:00:00]} 54. Kc5 {[%emt 0:00:43]} Rb8 {[%emt 0:00:00]} 55. Rb2 {[%emt 0:00:11]} Ke6 {[%emt 0:00:00]} 56. f4 {[%emt 0:00:46]} h5 {[%emt 0:00:00]} 57. Re2+ {[%emt 0:00:18]} Kf6 {[%emt 0:00:00]} 58. gxh5 {[%emt 0:00:41]} Kf5 {[%emt 0:00:00]} 59. Rg2 {[%emt 0:00:43]} b3 {[%emt 0:01:51]} 60. Rb2 {[%emt 0:00:18]} Rb4 {[%emt 0:00:04]} 61. Kd6 {[%emt 0:00:19]} Kxf4 {[%emt 0:00:41]} 62. Ke6 {[%emt 0:00:12]} Ke4 {[%emt 0:01:58]} 63. Kf7 {[%emt 0:00:20]} Rb7+ {[%emt 0:00:01]} 64. Kg6 {[%emt 0:00:17]} Kd4 {[%emt 0:00:21]} 65. Rxb3 {[%emt 0:01:30]} Rxb3 {[%emt 0:00:01]} 66. Kxg7 {[%emt 0:00:01]} Rh3 {[%emt 0:00:01]} 67. h6 {[%emt 0:00:25]} Rxh4 {[%emt 0:00:06]} 68. h7 {[%emt 0:00:04]} Kc4 {[%emt 0:00:02]} 0-1

[Event "6th Tulsi Lal Memorial NTCC 2080"]
[Site "Lalitpur"]
[Date "2024.01.08"]
[Round "1.2"]
[White "Bajracharya, Rajendra"]
[Black "Dahal, Sushrut"]
[Result "1/2-1/2"]
[ECO "B85"]
[WhiteElo "1795"]
[BlackElo "1895"]
[Annotator "NA RC COMBH"]
[PlyCount "76"]
[EventDate "2024.01.03"]
[EventType "team-tourn"]
[EventCountry "NEP"]
[SourceTitle "playchess.com"]
[Source "ChessBase"]
[SourceQuality "1"]
[TimeControl "5400+30"]

1. e4 {[%emt 0:00:34]} c5 {[%emt 0:00:02]} 2. Nf3 {[%emt 0:00:06]} e6 {[%emt 0:00:02]} 3. d4 {[%emt 0:00:14]} cxd4 {[%emt 0:00:03]} 4. Nxd4 {[%emt 0:00:08]} a6 {[%emt 0:00:06]} 5. Nc3 {[%emt 0:00:38]} Qc7 {[%emt 0:00:57]} 6. Be2 {[%emt 0:01:36]} Nf6 {[%emt 0:00:17]} 7. O-O {[%emt 0:01:29]} Be7 {[%emt 0:00:33]} 8. Be3 {[%emt 0:00:17]} O-O {[%emt 0:02:17]} 9. a4 {[%emt 0:04:44]} Nc6 {[%emt 0:06:33]} 10. Nb3 {[%emt 0:01:23]} b6 {[%emt 0:07:27]} 11. f4 {[%emt 0:04:32]} d6 {[%emt 0:04:24]} 12. Bf3 {[%emt 0:04:21]} Bb7 {[%emt 0:04:55]} 13. Qe1 {[%emt 0:01:09]} Nd7 {[%emt 0:04:31]} 14. Qf2 {[%emt 0:06:31]} Nc5 {[%emt 0:13:18]} 15. e5 {[%emt 0:26:46]} dxe5 {[%emt 0:11:22]} 16. Nxc5 {[%emt 0:10:05]} bxc5 {[%emt 0:02:37]} 17. Bxc5 {[%emt 0:06:31]} exf4 {[%emt 0:06:52]} 18. Bxc6 {[%emt 0:06:05] [#]} Bxc6 {[%emt 0:04:48]} (18... Bxc5 $1 $19 {is more deadly.} 19. Qxc5 Rac8) 19. Bxe7 {[%emt 0:02:25]} Qxe7 {[%emt 0:00:02]} 20. Qxf4 {[%emt 0:00:04]} Rab8 {[%emt 0:00:22]} 21. Rfb1 {[%emt 0:06:21]} Rb4 {[%emt 0:01:38]} 22. Qf2 {[%emt 0:04:06]} Rg4 {[%emt 0:02:35]} 23. g3 {[%emt 0:01:45]} Ba8 {[%emt 0:01:03]} 24. h3 {[%emt 0:02:57]} Rg5 {[%emt 0:01:33]} 25. Rf1 {[%emt 0:03:29]} Qb7 {[%emt 0:00:45]} 26. Kh2 {[%emt 0:00:02]} Qxb2 {[%emt 0:03:11]} 27. Rab1 {[%emt 0:00:20]} Qa3 {[%emt 0:01:58]} 28. Rb3 {[%emt 0:02:20]} Qd6 {[%emt 0:01:22]} 29. Rb6 {[%emt 0:01:06]} Qe7 {[%emt 0:01:51]} 30. Rxa6 {[%emt 0:01:18]} (30. Rbb1 $142) 30... h5 {[%emt 0:03:06]} 31. Ra7 {[%emt 0:00:28]} Qe8 {[%emt 0:01:39]} 32. Nb5 {[%emt 0:01:34]} Rf5 {[%emt 0:01:58]} 33. Qe2 {[%emt 0:00:59]} Rxf1 {[%emt 0:00:34]} 34. Qxf1 {[%emt 0:00:25]} Qc6 {[%emt 0:00:42]} 35. Rc7 {[%emt 0:00:27]} Qd5 {[%emt 0:02:03]} 36. c4 {[%emt 0:00:34]} Qd2+ {[%emt 0:00:11]} 37. Kg1 {[%emt 0:00:03]} Qe3+ {[%emt 0:00:40]} 38. Kh2 {[%emt 0:00:49]} Qd2+ $11 {[%emt 0:00:19]} (38... h4 {mates} 39. Qg2 Bxg2 40. Kxg2 Qe2+ {[%mdl 64] Deflection} 41. Kg1 hxg3 42. h4 Qh2+ 43. Kf1 Qf2#) 1/2-1/2

[Event "6th Tulsi Lal Memorial NTCC 2080"]
[Site "Lalitpur"]
[Date "2024.01.08"]
[Round "1.4"]
[White "Shrestha, Riya"]
[Black "Lohani, Sujana"]
[Result "0-1"]
[ECO "B50"]
[WhiteElo "1256"]
[BlackElo "1756"]
[Annotator "NA RC COMBH"]
[PlyCount "74"]
[EventDate "2024.01.03"]
[EventType "team-tourn"]
[EventCountry "NEP"]
[SourceTitle "playchess.com"]
[Source "ChessBase"]
[SourceQuality "1"]
[TimeControl "5400+30"]

1. e4 {[%emt 0:00:07]} c5 {[%emt 0:00:58]} 2. Nf3 {[%emt 0:02:10]} d6 {[%emt 0:02:02]} 3. d3 {[%emt 0:03:56]} Nc6 {[%emt 0:00:46]} 4. Nc3 {[%emt 0:02:44]} Nf6 {[%emt 0:03:00]} 5. Be2 {[%emt 0:02:48]} g6 {[%emt 0:04:48]} 6. O-O {[%emt 0:03:18]} Bg7 {[%emt 0:00:24]} 7. Be3 {[%emt 0:04:49]} O-O {[%emt 0:02:22]} 8. h3 {[%emt 0:06:28]} b5 {[%emt 0:04:04]} 9. e5 {[%emt 0:03:33]} Ne8 {[%emt 0:07:22]} 10. Nxb5 {[%emt 0:06:39]} Rb8 {[%emt 0:09:44]} 11. d4 {[%emt 0:05:15]} a6 {[%emt 0:01:57]} 12. Nc3 {[%emt 0:05:44]} cxd4 {[%emt 0:07:33]} 13. Bxd4 {[%emt 0:04:44]} Nxd4 {[%emt 0:02:49]} 14. Qxd4 {[%emt 0:01:37]} Rxb2 {[%emt 0:11:10]} 15. Bd3 {[%emt 0:03:19]} Nc7 {[%emt 0:10:09]} 16. Rab1 {[%emt 0:06:27]} Rxb1 {[%emt 0:05:27]} 17. Rxb1 {[%emt 0:00:37]} dxe5 {[%emt 0:11:21]} 18. Qa7 {[%emt 0:35:15]} Nd5 {[%emt 0:06:12]} 19. Na4 {[%emt 0:00:00]} Qa5 {[%emt 0:01:15]} 20. c4 {[%emt 0:00:00]} Nb4 {[%emt 0:01:59]} 21. Nb2 {[%emt 0:00:00]} Nxd3 {[%emt 0:01:15]} 22. Nxd3 {[%emt 0:00:00]} e4 {[%emt 0:00:28]} 23. Nc5 {[%emt 0:00:00]} exf3 {[%emt 0:00:47]} 24. Qxe7 {[%emt 0:00:00]} Qxa2 {[%emt 0:01:27]} 25. Rd1 {[%emt 0:00:00]} Qe2 {[%emt 0:01:06]} 26. Qd6 {[%emt 0:00:00]} Qxc4 {[%emt 0:01:05]} 27. Qe7 {[%emt 0:00:00]} Qe2 {[%emt 0:00:39]} 28. Qd6 {[%emt 0:00:00]} Re8 {[%emt 0:00:19]} 29. Na4 {[%emt 0:00:00]} Qe1+ {[%emt 0:00:46]} 30. Rxe1 {[%emt 0:00:00]} Rxe1+ {[%emt 0:00:04]} 31. Kh2 {[%emt 0:00:00]} Be5+ {[%emt 0:00:06]} 32. Qxe5 {[%emt 0:00:00]} Rxe5 {[%emt 0:00:05]} 33. gxf3 {[%emt 0:00:00]} Bb7 {[%emt 0:00:32]} 34. Kg3 {[%emt 0:00:00]} Rg5+ {[%emt 0:00:51]} 35. Kf4 {[%emt 0:00:00]} Rf5+ {[%emt 0:00:06]} 36. Ke3 {[%emt 0:00:00]} Rxf3+ {[%emt 0:00:08]} 37. Ke2 {[%emt 0:00:00]} Rxh3 {[%emt 0:00:27]} 0-1

[Event "6th Tulsi Lal Memorial NTCC 2080"]
[Site "Lalitpur"]
[Date "2024.01.08"]
[Round "1.5"]
[White "Rai, Dhiren"]
[Black "Bhandari, Kshitiz"]
[Result "0-1"]
[ECO "D30"]
[WhiteElo "1452"]
[BlackElo "2061"]
[Annotator "RC"]
[PlyCount "102"]
[EventDate "2024.01.03"]
[EventType "team-tourn"]
[EventCountry "NEP"]
[SourceTitle "playchess.com"]
[Source "ChessBase"]
[SourceQuality "1"]
[TimeControl "5400+30"]

1. d4 {[%emt 0:00:12]} Nf6 {[%emt 0:00:06]} 2. e3 {[%emt 0:00:15]} d5 {[%emt 0:00:21]} 3. c4 {[%emt 0:00:32]} e6 {[%emt 0:00:07]} 4. Nf3 {[%emt 0:01:10]} Be7 {[%emt 0:00:22]} 5. Bd3 {[%emt 0:01:26]} dxc4 {[%emt 0:00:14]} 6. Bxc4 {[%emt 0:00:16]} a6 {[%emt 0:00:04]} 7. O-O {[%emt 0:01:36]} b5 {[%emt 0:00:26]} 8. Bd3 {[%emt 0:12:59]} Bb7 {[%emt 0:00:41]} 9. Nbd2 {[%emt 0:01:32]} Nbd7 {[%emt 0:01:41]} 10. b3 {[%emt 0:03:19]} c5 {[%emt 0:00:15]} 11. Bb2 {[%emt 0:00:27]} O-O {[%emt 0:00:10]} 12. Qe2 {[%emt 0:00:35]} Re8 {[%emt 0:01:28]} 13. Rac1 {[%emt 0:12:48]} cxd4 {[%emt 0:10:42]} 14. Nxd4 {[%emt 0:03:04]} Nc5 {[%emt 0:01:27]} 15. Bb1 {[%emt 0:00:30]} Rc8 {[%emt 0:02:56]} 16. Rfd1 {[%emt 0:01:44]} Qb6 {[%emt 0:00:11]} 17. a3 {[%emt 0:02:13]} Red8 {[%emt 0:02:25]} 18. b4 {[%emt 0:01:24]} Na4 {[%emt 0:00:24]} 19. Ba1 {[%emt 0:00:15]} g6 {[%emt 0:13:42]} 20. N2b3 {[%emt 0:07:39]} Ne4 {[%emt 0:03:16]} 21. Bxe4 {[%emt 0:02:52]} Bxe4 {[%emt 0:00:24]} 22. Qg4 {[%emt 0:06:16]} f5 {[%emt 0:16:32]} 23. Qe2 {[%emt 0:02:09]} e5 {[%emt 0:04:06]} 24. Nf3 {[%emt 0:06:04]} Qe6 {[%emt 0:00:08]} 25. Rxd8+ {[%emt 0:02:20]} Rxd8 {[%emt 0:01:24]} 26. Nc5 {[%emt 0:00:25]} Nxc5 {[%emt 0:01:11]} 27. bxc5 {[%emt 0:00:11]} Bf6 {[%emt 0:15:25]} 28. Qb2 {[%emt 0:01:02]} Qd5 {[%emt 0:01:01]} 29. Ne1 {[%emt 0:01:12]} Qc6 {[%emt 0:03:27]} 30. f3 {[%emt 0:00:36]} Bd5 {[%emt 0:00:11]} 31. Nd3 {[%emt 0:01:12]} Bc4 {[%emt 0:00:57]} 32. Nxe5 {[%emt 0:00:35]} Qxc5 {[%emt 0:00:06]} 33. Re1 {[%emt 0:01:08]} f4 {[%emt 0:00:55]} 34. Qb4 {[%emt 0:02:21]} Be7 {[%emt 0:03:41]} 35. Nxc4 {[%emt 0:04:51]} Qxb4 {[%emt 0:01:45]} 36. axb4 {[%emt 0:00:04]} bxc4 {[%emt 0:00:11]} 37. exf4 {[%emt 0:00:16]} Bxb4 {[%emt 0:00:03]} 38. Rc1 {[%emt 0:00:37]} Rc8 {[%emt 0:02:04]} 39. Bc3 {[%emt 0:06:03]} Bxc3 {[%emt 0:01:10]} 40. Rxc3 {[%emt 0:00:09]} Kf7 {[%emt 0:00:00]} 41. Kf2 {[%emt 0:00:29]} Ke6 {[%emt 0:00:01]} 42. Ra3 {[%emt 0:00:29]} c3 {[%emt 0:01:34]} 43. Rxa6+ {[%emt 0:00:19]} Kd5 {[%emt 0:00:01]} 44. Ra1 {[%emt 0:00:17]} c2 {[%emt 0:00:17]} 45. Rc1 {[%emt 0:00:09]} Kd4 {[%emt 0:00:01]} 46. g4 {[%emt 0:02:10]} Kd3 {[%emt 0:00:08]} 47. Kg3 {[%emt 0:00:25]} Kd2 {[%emt 0:00:32]} 48. Rxc2+ {[%emt 0:00:28]} Rxc2 {[%emt 0:00:21]} 49. f5 {[%emt 0:00:21]} gxf5 {[%emt 0:00:20]} 50. gxf5 {[%emt 0:00:12]} Ke3 {[%emt 0:00:03]} 51. Kg4 {[%emt 0:00:12]} Rg2+ {[%emt 0:00:05]} 0-1

[Event "6th Tulsi Lal Memorial NTCC 2080"]
[Site "Lalitpur"]
[Date "2024.01.08"]
[Round "1.6"]
[White "Khadka, Purna Raj"]
[Black "Maharjan, Sanubhai"]
[Result "0-1"]
[ECO "A50"]
[WhiteElo "1890"]
[BlackElo "1597"]
[Annotator "NA RC COMBH"]
[PlyCount "66"]
[EventDate "2024.01.03"]
[EventType "team-tourn"]
[EventCountry "NEP"]
[SourceTitle "playchess.com"]
[Source "ChessBase"]
[SourceQuality "1"]
[TimeControl "5400+30"]

1. e4 {[%emt 0:00:30]} Nc6 {[%emt 0:00:30]} 2. d4 {[%emt 0:00:30]} e5 {[%emt 0:00:18]} 3. d5 {[%emt 0:00:55]} Nce7 {[%emt 0:00:29]} 4. c4 {[%emt 0:01:20]} Nf6 {[%emt 0:00:54]} 5. Nc3 {[%emt 0:00:30]} Ng6 {[%emt 0:00:37]} 6. Nf3 {[%emt 0:02:08]} Bb4 {[%emt 0:00:51]} 7. Bd3 {[%emt 0:00:56]} O-O {[%emt 0:00:32]} 8. Bd2 {[%emt 0:00:52]} d6 {[%emt 0:00:33]} 9. h3 {[%emt 0:01:45]} b6 {[%emt 0:00:53]} 10. O-O {[%emt 0:01:31]} Nh5 {[%emt 0:00:30]} 11. Ne2 {[%emt 0:03:05]} Bxd2 {[%emt 0:00:43]} 12. Qxd2 {[%emt 0:00:15]} Nhf4 {[%emt 0:00:42]} 13. Ng3 {[%emt 0:01:01]} Bd7 {[%emt 0:01:17]} 14. Rfe1 {[%emt 0:00:45]} Nxd3 {[%emt 0:03:14]} 15. Qxd3 {[%emt 0:00:09]} Nf4 {[%emt 0:00:14]} 16. Qd2 {[%emt 0:02:23]} Qc8 {[%emt 0:00:30]} 17. Re3 {[%emt 0:01:03]} f5 {[%emt 0:04:11]} 18. exf5 {[%emt 0:03:16]} Bxf5 {[%emt 0:00:25]} 19. Nxf5 {[%emt 0:10:52]} Qxf5 {[%emt 0:00:28]} 20. Kh2 {[%emt 0:02:28]} Rf6 {[%emt 0:01:04]} 21. Ng1 {[%emt 0:04:36]} Rh6 {[%emt 0:02:00]} 22. Ne2 {[%emt 0:03:06]} Rf8 {[%emt 0:01:08]} 23. Rf3 {[%emt 0:05:52]} g5 {[%emt 0:04:23]} 24. Nxf4 {[%emt 0:02:04]} (24. Rf1 {might be stronger.}) 24... gxf4 {[%emt 0:03:29]} 25. Ra3 {[%emt 0:05:00] [#]} a5 $1 {[%emt 0:00:49]} 26. f3 {[%emt 0:04:39] [#]} Rff6 {[%emt 0:01:02]} (26... Kh8 $1 $17 27. Rc1 Rg8) 27. Rg1 {[%emt 0:05:12]} Rfg6 {[%emt 0:02:38]} 28. Qf2 {[%emt 0:00:28] [#]} Rg3 $1 {[%emt 0:00:23]} 29. Qf1 {[%emt 0:00:40]} Qc2 {[%emt 0:01:52]} 30. Kh1 {[%emt 0:01:58]} Qxb2 $19 {[%emt 0:00:38]} 31. Qd3 {[%emt 0:03:29]} Rhg6 {[%emt 0:00:47]} 32. Rb3 {[%emt 0:00:29]} Qf2 {[%emt 0:00:25]} 33. Qf5 {[%emt 0:01:28]} Rxg2 {[%emt 0:01:02]} 0-1

[Event "6th Tulsi Lal Memorial NTCC 2080"]
[Site "Lalitpur"]
[Date "2024.01.08"]
[Round "1.8"]
[White "Shah, Anup Jung"]
[Black "Dhimal, Shanti"]
[Result "0-1"]
[ECO "D06"]
[WhiteElo "1513"]
[BlackElo "1462"]
[Annotator "NA RC COMBH"]
[PlyCount "94"]
[EventDate "2024.01.03"]
[EventType "team-tourn"]
[EventCountry "NEP"]
[SourceTitle "playchess.com"]
[Source "ChessBase"]
[SourceQuality "1"]
[TimeControl "5400+30"]

1. d4 {[%emt 0:00:19]} d5 {[%emt 0:00:28]} 2. c4 {[%emt 0:00:35]} Nf6 {[%emt 0:00:45]} 3. Nc3 {[%emt 0:01:16]} Bf5 {[%emt 0:01:01]} 4. Nf3 {[%emt 0:01:59]} e6 {[%emt 0:01:07]} 5. Bg5 {[%emt 0:01:41]} h6 {[%emt 0:01:06]} 6. Bh4 {[%emt 0:00:59]} Be7 {[%emt 0:00:16]} 7. e3 {[%emt 0:01:08]} c6 {[%emt 0:00:58]} 8. cxd5 {[%emt 0:02:47]} cxd5 {[%emt 0:00:17]} 9. Bxf6 {[%emt 0:03:06]} Bxf6 {[%emt 0:00:14]} 10. Bb5+ {[%emt 0:00:28]} Nc6 {[%emt 0:01:23]} 11. O-O {[%emt 0:01:53]} O-O {[%emt 0:00:10]} 12. h3 {[%emt 0:01:35]} Rc8 {[%emt 0:02:35]} 13. a3 {[%emt 0:05:02]} Na5 {[%emt 0:02:57]} 14. Bd3 {[%emt 0:03:35]} Bxd3 {[%emt 0:02:09]} 15. Qxd3 {[%emt 0:00:08]} Qd7 {[%emt 0:01:44]} 16. Rac1 {[%emt 0:02:00]} Nc4 {[%emt 0:04:38]} 17. Rc2 {[%emt 0:01:46]} a6 {[%emt 0:01:55]} 18. e4 {[%emt 0:09:16]} Rfd8 {[%emt 0:03:01]} 19. Rd1 {[%emt 0:06:32]} b5 {[%emt 0:01:31]} 20. exd5 {[%emt 0:08:38]} exd5 {[%emt 0:00:28]} 21. Ne5 {[%emt 0:01:15]} Bxe5 {[%emt 0:04:13]} 22. dxe5 {[%emt 0:00:24]} Nxe5 {[%emt 0:05:28]} 23. Qd4 {[%emt 0:04:47]} Qf5 {[%emt 0:01:32]} 24. Re2 {[%emt 0:04:04]} Nc6 {[%emt 0:01:45]} 25. Qd3 {[%emt 0:08:12]} Qxd3 {[%emt 0:06:22]} 26. Rxd3 {[%emt 0:00:05]} d4 {[%emt 0:00:34]} 27. Ne4 {[%emt 0:03:21]} Ne5 {[%emt 0:06:20]} 28. Rd1 {[%emt 0:01:02]} Nc4 {[%emt 0:02:34]} 29. b3 {[%emt 0:05:35]} Nxa3 {[%emt 0:06:07]} 30. Red2 {[%emt 0:02:24]} Nc2 {[%emt 0:01:56]} 31. Rc1 {[%emt 0:03:08]} d3 {[%emt 0:00:13]} 32. f3 {[%emt 0:01:46]} Nb4 {[%emt 0:00:46]} 33. Rxc8 {[%emt 0:04:39]} Rxc8 {[%emt 0:00:09]} 34. Kf2 {[%emt 0:02:00]} f5 {[%emt 0:02:07]} 35. Nd6 {[%emt 0:01:35]} Rc5 {[%emt 0:03:23]} 36. Ke3 {[%emt 0:01:16]} g6 {[%emt 0:00:37]} 37. g4 {[%emt 0:02:28]} fxg4 {[%emt 0:02:19]} 38. fxg4 {[%emt 0:00:10]} Rc3 {[%emt 0:00:36]} 39. Nb7 {[%emt 0:01:26]} Rxb3 {[%emt 0:01:25]} 40. Nc5 {[%emt 0:00:12]} Rc3 {[%emt 0:00:26]} 41. Rb2 {[%emt 0:03:09]} a5 {[%emt 0:04:17]} 42. Nb7 {[%emt 0:00:57]} Rc2 {[%emt 0:03:41]} 43. Rxc2 {[%emt 0:02:23]} dxc2 {[%emt 0:00:02]} 44. Kd2 {[%emt 0:00:06]} a4 {[%emt 0:00:33]} 45. Nc5 {[%emt 0:00:12]} Kf7 {[%emt 0:00:36]} 46. h4 {[%emt 0:00:08]} Kf6 {[%emt 0:00:52]} 47. Kc1 {[%emt 0:01:10]} a3 {[%emt 0:00:45]} 0-1

[Event "6th Tulsi Lal Memorial NTCC 2080"]
[Site "Lalitpur"]
[Date "2024.01.09"]
[Round "2.1"]
[White "Nepal, Prakash Chandra"]
[Black "Subedi, Rajan"]
[Result "0-1"]
[ECO "E63"]
[WhiteElo "1900"]
[BlackElo "1809"]
[Annotator "TA"]
[PlyCount "67"]
[EventDate "2024.01.03"]
[EventType "team-tourn"]
[EventCountry "NEP"]
[SourceTitle "playchess.com"]
[Source "ChessBase"]
[SourceQuality "1"]
[TimeControl "5400+30"]

{[%evp 19,67,40,70,36,40,43,39,11,25,-16,31,-47,16,-60,-58,-49,-58,-45,-54,-54,-54,-51,-50,-48,-56,-62,-67,-117,-116,-116,-115,-128,-119,-147,-29,-211,-177,-666,-661,-619,-620,-602,-608,-556,-425,-29989,-644,-780,-761,-29997]} 1. d4 {[%emt 0:10:16]} Nf6 {[%emt 0:00:09]} 2. Nf3 {[%emt 0:00:08]} g6 {[%emt 0:00:33]} 3. g3 {[%emt 0:00:28]} Bg7 {[%emt 0:00:14]} 4. Bg2 {[%emt 0:00:09]} d6 {[%emt 0:00:42]} 5. O-O {[%emt 0:00:27]} O-O {[%emt 0:00:06]} 6. c4 {[%emt 0:00:03]} Nc6 {[%emt 0:00:34]} 7. Nc3 {[%emt 0:00:42]} a6 {[%emt 0:00:55]} 8. h3 {[%emt 0:04:47]} h6 {[%emt 0:00:52]} 9. e4 {[%emt 0:02:06]} e5 {[%emt 0:02:01]} 10. Be3 {[%emt 0:00:22]} Nd7 {[%emt 0:05:01]} 11. d5 {[%emt 0:09:21] E63: King's Indian: Fianchetto: Panno Variation with 7...a6.} Ne7 {[%emt 0:00:47]} 12. Qd2 {[%emt 0:00:56]} Kh7 {[%emt 0:00:14]} 13. Ne1 {[%emt 0:01:09] White is slightly better.} f5 {[%emt 0:01:08] [#]} 14. f3 $146 {[%emt 0:00:21]} ({Predecessor:} 14. Nd3 Nf6 15. f4 Nxe4 16. Nxe4 fxe4 17. Nf2 Nf5 18. Nxe4 Qe7 19. Rae1 Bd7 20. fxe5 Qxe5 {0-1 Satre,M (1755)-Haldorsen,B (2096) Sandnes Masfjorden op 2015 (5)}) 14... Nf6 {[%emt 0:07:19]} (14... Nb6 $11) 15. Kh2 {[%emt 0:06:33]} (15. Bf2 $14) 15... Nh5 {[%emt 0:02:20]} (15... f4 $15 16. gxf4 exf4 17. Bxf4 Nfxd5 18. cxd5 (18. Nxd5 Nxd5 19. cxd5 Rxf4 $15) 18... Rxf4) 16. Ne2 {[%emt 0:03:03] [#]} (16. Bf2 $11) 16... Nxg3 $1 {[%emt 0:03:11][%mdl 64] Remove Defender, Decoy} 17. Nxg3 {[%emt 0:00:08]} f4 {[%emt 0:00:07]} 18. Bf2 {[%emt 0:00:25] Strongly threatening Ne2.} fxg3+ {[%emt 0:00:14]} 19. Bxg3 {[%emt 0:00:02]} g5 {[%emt 0:00:36][%cal Bg6g5,Bg5f4][%mdl 32]} 20. Nd3 {[%emt 0:02:00]} Ng6 {[%emt 0:00:36]} 21. c5 {[%emt 0:00:33]} Bd7 {[%emt 0:03:11]} 22. a4 {[%emt 0:01:56]} Nf4 {[%emt 0:04:13]} 23. Nxf4 {[%emt 0:01:10]} (23. b3 $15) 23... gxf4 $17 {[%emt 0:20:13]} ({Reject} 23... exf4 $6 24. Bf2 $15) 24. Bf2 {[%emt 0:00:30]} Rg8 {[%emt 0:00:30]} 25. cxd6 {[%emt 0:00:30]} cxd6 {[%emt 0:00:30]} 26. Qb4 {[%emt 0:00:30] [#]} Qe7 {[%emt 0:00:30]} ({Black should play} 26... Bf6 $1 $17 {[%cal Rf6h4] White must now prevent ...Bh4.} 27. Qb6 (27. Qxb7 $2 {is the wrong capture.} Rb8 $19) 27... Qe7) 27. Rfc1 $2 {[%emt 0:00:30] Now White is beyond hope.} (27. Rac1 $11) 27... Bf6 $19 {aiming for ...Bh4.} 28. Bf1 $2 {[%emt 0:00:30]} (28. Rc7 Rxg2+ {[%mdl 64] Remove Defender} 29. Kxg2 Bxh3+ {[%mdl 64] Discovered Attack} 30. Kxh3 Qxc7 31. Rg1) 28... Bh4 {[%emt 0:01:00]} 29. Qe1 {[%emt 0:15:43]} Bg3+ {[%emt 0:00:34]} 30. Bxg3 {[%emt 0:10:55]} Rxg3 {[%emt 0:01:24]} 31. Rc7 {[%emt 0:04:48]} Rag8 {[%emt 0:00:52][%cal Oe7g5] ( -> ...Qg5!)} ({Inferior is} 31... Rxf3 32. Ra3 Rxa3 33. bxa3 $17) 32. Rxb7 {[%emt 0:17:38]} (32. Rac1 $19) 32... R8g7 {[%emt 0:00:08]} (32... Qg5 $142 33. Rxd7+ Kh8 34. Rg7 Rxg7 35. Qf2 Rxf3 36. Qg2 Rxh3+ 37. Kg1 Rg3 38. Kf2 Rxg2+ 39. Ke1 Qg3+ 40. Kd1 Qf3+ 41. Ke1 Qf2+ {[%mdl 64] Deflection, Double Attack} 42. Kd1 Qxf1#) 33. Rc1 {[%emt 0:01:18]} Qg5 {[%emt 0:01:00]} 34. Rxd7 {[%emt 0:07:33] Weighted Error Value: White=0.86/Black=0.38} 0-1